Cogmind - Beta 10.2 @@@ ROGUE MODE // 2020.11.18 @ 23:19:52 // Halloween2020/ForbiddenLore Player: rusmal Result: Destroyed by 26-S5A(z) with Zionite Laser-S Performance ------------- Evolutions (3) 1500 Regions Visited (12) 2400 Robots Destroyed (132) 660 Value Destroyed (3158) 3158 Prototype IDs (44) 880 Alien Tech Used (0) 0 Bonus (1691) 1691 TOTAL SCORE: 10289 Bonus ------- High Alert Combat Kills 289 Follower Combat Kills 180 Aligned with FarCom 300 Destroyed Z-Imprinter 1000 Friendly Fire -78 Cogmind --------- Core Integrity 0/700 Matter 300/300 Energy 95/100 System Corruption 0% Temperature Cool (27) Movement Core (200) Ox3 Location -7/Deep Caves Parts ------- > --- POWER (1) -------- (None) > --- PROPULSION (3) --- (None) > --- UTILITY (7) ------ Medium Storage Unit Improved Signal Interpreter Hacking Suite Makeshift Hacking Suite Makeshift Hacking Suite > --- WEAPON (2) ------- CR-A16's Pointy Stick > --- INVENTORY (8) ---- Medium Storage Unit Zionite Metafield Generator Advanced Sensor Array Hacking Drone Bay (1/1) Peak State ------------ > --- POWER ------------ Light Angular Momentum Engine > --- PROPULSION ------- Zionite Glidesys I Improved Flight Unit Cesium-ion Thruster > --- UTILITY ---------- Medium Storage Unit Improved Signal Interpreter Hacking Suite Hacking Suite Hacking Suite Hacking Suite Hacking Drone Bay > --- WEAPON ----------- Improved EM Pulse Cannon Katana > --- INVENTORY -------- Cesium-ion Thruster Cesium-ion Thruster Medium Storage Unit Advanced Sensor Array Improved Light Armor Plating CR-A16's Pointy Stick [Rating: 49] Favorites ----------- Power Reinforced Ion Engine Engine Reinforced Ion Engine Power Core Micro Nuclear Core Propulsion Light Treads Treads Light Treads Leg Enhanced Flexi-carbon Leg Hover Unit Zionite Glidesys I Flight Unit Improved Flight Unit Utility Large Storage Unit Device Advanced Sensor Array Storage Large Storage Unit Processor Improved Signal Interpreter Hackware Hacking Suite Protection Light Armor Plating Weapon Improved Medium Laser Energy Gun Improved Medium Laser Energy Cannon Particle Cannon Ballistic Gun Assault Rifle Ballistic Cannon Light Cannon Launcher Mini Grenade Launcher Slashing Weapon Katana Piercing Weapon CR-A16's Pointy Stick Build | -11 -10 -10 -9 -9 -9 -8 -8 -7 -7 -7 -7 -7 ------- Run | Scr Mat Min Mat Min Exi Min Mat Fac Low Low Zio Dee Slots Evolved 6 | . . . 2 . . . 2 2 . . . . Power . | . . . . . . . . . . . . . Propulsion 1 | . . . 1 . . . . . . . . . Utility 5 | . . . 1 . . . 2 2 . . . . Weapon . | . . . . . . . . . . . . . Parts Attached 155 | 6 13 6 48 5 1 . 28 20 4 2 1 21 Power 15 | 1 2 . 5 1 . . . 5 . . . 1 Engine 9 | 1 2 . 4 1 . . . . . . . 1 Core 6 | . . . 1 . . . . 5 . . . . Reactor . | . . . . . . . . . . . . . Propulsion 49 | 2 4 . 19 2 . . 8 5 2 . 1 6 Treads 36 | 2 4 . 19 2 . . 8 . . . . 1 Leg 2 | . . . . . . . . . . . . 2 Wheel . | . . . . . . . . . . . . . Hover 1 | . . . . . . . . . . . . 1 Flight 10 | . . . . . . . . 5 2 . 1 2 Utility 42 | 1 5 . 11 . . . 8 8 1 1 . 7 Device 5 | . . . . . . . 1 1 . 1 . 2 Storage 13 | 1 3 . 5 . . . 3 1 . . . . Processor 2 | . . . . . . . . 2 . . . . Hackware 7 | . . . . . . . . 4 . . . 3 Protection 15 | . 2 . 6 . . . 4 . 1 . . 2 Artifact . | . . . . . . . . . . . . . Weapon 49 | 2 2 6 13 2 1 . 12 2 1 1 . 7 Energy Gun 19 | 1 2 3 7 . . . 5 . . . . 1 Energy Cannon 5 | . . . 2 . . . . . . . . 3 Ballistic Gun 9 | 1 . . 3 1 1 . 2 1 . . . . Ballistic Cannon 1 | . . 1 . . . . . . . . . . Launcher 10 | . . 2 1 1 . . 3 . 1 . . 2 Special Weapon . | . . . . . . . . . . . . . Impact Weapon . | . . . . . . . . . . . . . Slashing Weapon 4 | . . . . . . . 2 1 . 1 . . Piercing Weapon 1 | . . . . . . . . . . . . 1 Special Melee Weapon . | . . . . . . . . . . . . . Unidentified Prototypes 7 | . . . . . . . 1 1 . . . 5 Parts Lost 29 | . 1 1 9 1 . . . 1 . . . 16 Power 6 | . . . 3 . . . . 1 . . . 2 Propulsion 9 | . . . 1 . . . . . . . . 8 Utility 3 | . . . 1 . . . . . . . . 2 Weapon 11 | . 1 1 4 1 . . . . . . . 4 Highest Loss Streak 13 | . 1 1 4 1 . . . 1 . . . 13 Average Slot Usage (%) 98 | . 99 100 99 99 95 100 99 92 97 92 92 91 Engine 9 | . 13 14 10 11 11 11 9 . . . . 3 Treads 25 | . 28 28 32 33 33 33 27 . . . . . Flight 3 | . . . . . . . . 22 23 23 23 17 Storage 25 | . 23 28 23 33 33 33 35 8 7 7 7 7 Processor 1 | . . . . . . . . 12 7 7 7 7 Hackware 4 | . . . . . . . . 25 30 30 30 29 Protection 4 | . 4 . 9 . . . 9 . . 2 . 2 Energy Gun 7 | . 13 1 11 10 . . 7 . . . . . Ballistic Gun 8 | . 14 8 9 . 6 11 8 5 . . . . Launcher 3 | . . 12 . 10 11 11 1 . 5 5 . 2 Slashing Weapon 1 | . . . . . . . . 7 6 1 7 6 Naked Turns . | . . . . . . . . . . . . . Heaviest Build 89 | 13 44 45 59 62 62 62 89 34 20 18 17 29 Greatest Support 62 | 40 40 40 60 60 60 60 62 18 18 18 18 56 Greatest Overweight (x) 2 | . 1 1 1 1 1 1 1 1 1 . . 2 Average Overweight (x) . | . . 1 . . . 1 1 . . . . . Largest Inventory Capacity 32 | 6 16 16 22 22 22 22 28 32 8 8 8 8 Average Capacity 17 | 5 11 16 16 22 22 22 26 9 8 8 8 8 Most Carried 28 | 6 16 16 22 22 22 22 28 28 8 8 8 8 Average Carried 16 | 3 10 15 16 21 21 22 25 8 7 7 7 7 Final Capacity 28 | 6 16 16 22 22 22 22 28 8 8 8 8 8 Final Carried 28 | 6 16 15 22 21 22 22 28 7 8 8 8 4 Class Distribution -------------------- 37% | Hauler-Mutant 31% | Mutant 15% | Scavenger-Mutant 12% | Hacker-Sprinter Dominant Class ---------------- Mutant | -10/Materials Mutant | -10/Mines Scavenger-Mutant | -9/Materials Hauler-Mutant | -9/Mines Hauler-Mutant | -9/Exiles Hauler-Mutant | -8/Mines Hauler-Mutant | -8/Materials Hacker-Sprinter | -7/Factory Hacker-Sprinter | -7/Lower Caves Hacker-Sprinter | -7/Lower Caves Hacker-Sprinter | -7/Zion Hacker-Mutant | -7/Deep Caves Resources | -11 -10 -10 -9 -9 -9 -8 -8 -7 -7 -7 -7 -7 ----------- Run | Scr Mat Min Mat Min Exi Min Mat Fac Low Low Zio Dee Matter Collected 2946 | 260 246 57 926 100 38 . 551 . 231 43 36 458 Remotely . | . . . . . . . . . . . . . Salvage Created 4442 | . 568 71 2472 139 . . 893 24 170 43 . 62 Parts 286 | . 40 14 140 17 . . 63 3 . 3 . 6 Haulers Intercepted 11 | . 2 . 6 . . . 3 . . . . . Recyclers Shooed 1 | . . . 1 . . . . . . . . . Parts Field Recycled . | . . . . . . . . . . . . . Retrieved Matter . | . . . . . . . . . . . . . Parts Self-Destructed 1 | . . . . . . . . . 1 . . . Prevented . | . . . . . . . . . . . . . Kills | -11 -10 -10 -9 -9 -9 -8 -8 -7 -7 -7 -7 -7 ------- Run | Scr Mat Min Mat Min Exi Min Mat Fac Low Low Zio Dee Combat Hostiles Destroyed 105 | . 14 11 41 11 . . 24 1 . 1 . 2 Melee 2 | . . . . . . . . 1 . 1 . . Guns 64 | . 14 2 33 . . . 15 . . . . . Cannons 4 | . . 2 2 . . . . . . . . . AOE 35 | . . 7 6 11 . . 9 . . . . 2 Classes Destroyed 13 | . 4 . 4 1 . . 2 . 1 1 . . Worker 6 | . . . 2 . . . 4 . . . . . Builder 1 | . . . . . . . 1 . . . . . Hauler 11 | . 2 . 6 . . . 3 . . . . . Recycler 4 | . . . 4 . . . . . . . . . Minesweeper 1 | . . . . . . . . . 1 . . . Operator 6 | . 1 . 4 . . . 1 . . . . . Watcher 2 | . . . . . . . 2 . . . . . Swarmer 44 | . 6 11 7 7 . . 12 1 . . . . Grunt 39 | . 8 . 23 1 . . 7 . . . . . Brawler 2 | . . . 1 1 . . . . . . . . Sentry 15 | . . . 10 . . . 5 . . . . . Hunter 1 | . . . . . . . . . . 1 . . Z-Technician 3 | . . . . . . . . . . . . 3 Packrat 2 | . . . . . . . . . 2 . . . Assembled 4 | . . . . 2 . . . . . . . 2 Best Kill Streak 11 | . 3 3 11 5 . . 8 1 1 1 . 3 Combat Bots Only 10 | . 3 3 10 5 . . 4 1 . 1 . 1 Max Kills in Single Turn 4 | . 2 3 2 4 . . 4 1 1 1 . 1 Gunslinging 1 | . 1 . . . . . . . . . . . Exploded 4 | . . 3 2 4 . . 3 . . . . 1 Melee 1 | . . . . . . . . 1 . 1 . . Uniques/NPCs Destroyed 1 | . . . . . . . . . . . . 1 Z-Imprinter (-7/Deep Caves) Combat | -11 -10 -10 -9 -9 -9 -8 -8 -7 -7 -7 -7 -7 -------- Run | Scr Mat Min Mat Min Exi Min Mat Fac Low Low Zio Dee Damage Taken 6593 | . 502 239 1983 412 . . 1069 202 98 102 . 1986 Core 1270 | . 74 69 226 39 . . 152 46 . 13 . 651 Absorbed by Shields . | . . . . . . . . . . . . . Core Remaining (%) 61 | 100 . 42 . . . 33 72 . . . . . Volleys Fired 281 | . 38 14 120 10 . . 69 . 15 . . 15 Largest 2 | . 2 2 2 2 . . 2 . 1 . . 1 Hottest 113 | . 65 90 113 86 . . 81 . 30 . . 75 Shots Fired 500 | . 75 22 223 18 . . 132 . 15 . . 15 Gun 433 | . 75 9 214 10 . . 122 . . . . 3 Cannon 21 | . . 8 6 . . . . . . . . 7 Launcher 46 | . . 5 3 8 . . 10 . 15 . . 5 Special . | . . . . . . . . . . . . . Kinetic 209 | . 38 9 97 1 . . 64 . . . . . Thermal 103 | . . . 46 9 . . 45 . . . . 3 Explosive 46 | . . 5 3 8 . . 10 . 15 . . 5 Electromagnetic 142 | . 37 8 77 . . . 13 . . . . 7 Robot Hit Streak 23 | . 9 4 23 2 . . 19 . 2 . . 4 Robot Miss Streak 6 | . 3 3 3 3 . . 6 . . . . 5 Penetration Max . | . . . . . . . . . . . . . Secondary Targets 10 | . 1 . 5 . . . 4 . . . . . Max Gunslinging Chain 1 | . 1 . 1 . . . 1 . . . . . Shots Hit Robots 347 | . 51 11 176 3 . . 87 1 6 3 . 9 Core Hits 230 | . 30 12 99 17 . . 56 1 4 2 . 9 Critical Hits 2 | . 1 . . . . . . 1 . . . . Critical Kills 1 | . . . . . . . . 1 . . . . Critical Parts Destroyed 1 | . 1 . . . . . . . . . . . Melee Attacks 32 | . . . . . . . 4 7 7 4 . 10 Impact . | . . . . . . . . . . . . . Slashing 26 | . . . . . . . 4 7 7 4 . 4 Piercing 6 | . . . . . . . . . . . . 6 Sneak Attacks 7 | . . . . . . . . . 3 . . 4 Combat Hostiles . | . . . . . . . . . . . . . Follow-up Attacks . | . . . . . . . . . . . . . Damage Inflicted 8738 | . 762 578 3195 627 . . 2270 30 410 89 . 777 Guns 4750 | . 762 45 2414 70 . . 1418 . . . . 41 Cannons 245 | . . 74 123 . . . . . . . . 48 Explosions 2710 | . . 459 658 557 . . 852 . 14 . . 170 Melee 1033 | . . . . . . . . 30 396 89 . 518 Ramming . | . . . . . . . . . . . . . Kinetic 1884 | . 206 74 865 18 . . 721 . . . . . Thermal 1689 | . . . 1075 52 . . 521 . . . . 41 Explosive 2167 | . . 459 182 557 . . 785 . 14 . . 170 Electromagnetic 1965 | . 556 45 1073 . . . 243 . . . . 48 Impact . | . . . . . . . . . . . . . Slashing 1001 | . . . . . . . . 30 396 89 . 486 Piercing 32 | . . . . . . . . . . . . 32 Highest Corruption 5 | . 5 5 2 2 2 2 . 4 4 4 4 . Average Corruption 3 | . 4 5 1 2 2 2 . 4 4 4 4 . Corruption Purged . | . . . . . . . . . . . . . Effects 70 | . 6 31 6 8 3 2 . 2 7 2 3 . Message Errors 17 | . 1 7 2 3 2 1 . . . . 1 . Matter Fused 20 | . 2 10 . . . . . 2 4 . 2 . Heat Flow Errors 4 | . . 2 1 1 . . . . . . . . Energy Discharges 8 | . 2 1 1 2 . 1 . . 1 . . . Data Loss (minor) 10 | . 1 3 1 1 1 . . . 2 1 . . Data Loss (major) 3 | . . 3 . . . . . . . . . . Misfires 1 | . . 1 . . . . . . . . . . Targeting Errors 6 | . . 3 1 1 . . . . . 1 . . Weapon Failures 1 | . . 1 . . . . . . . . . . Overload Shots . | . . . . . . . . . . . . . Overflow Damage 434 | . . 26 82 1 . . 7 . 90 . . 228 Projectiles . | . . . . . . . . . . . . . Explosions 133 | . . 26 82 1 . . 7 . . . . 17 Melee 301 | . . . . . . . . . 90 . . 211 Knockbacks 1 | . . 1 . . . . . . . . . . Impact . | . . . . . . . . . . . . . Kinetic 1 | . . 1 . . . . . . . . . . Secondary . | . . . . . . . . . . . . . Self-Inflicted Damage 572 | . . 22 279 96 . . 87 . 49 . . 39 Shots 19 | . . 1 8 4 . . 4 . 1 . . 1 Rammed . | . . . . . . . . . . . . . Targets Rammed . | . . . . . . . . . . . . . Kicked . | . . . . . . . . . . . . . Crushed . | . . . . . . . . . . . . . Highest Temperature 352 | . 231 199 352 151 . . 318 6 . . . 135 Average Temperature 76 | . 53 68 83 35 . . 90 6 . . . 45 Received Heat Transfer 1908 | . 210 . 738 . . . 297 51 . . . 612 Effects 6 | . 1 . 5 . . . . . . . . . Shutdowns 2 | . . . 2 . . . . . . . . . Interference 2 | . 1 . 1 . . . . . . . . . Damage (minor) 2 | . . . 2 . . . . . . . . . Siege Activations . | . . . . . . . . . . . . . Robots Corrupted . | . . . . . . . . . . . . . Combat Hostiles . | . . . . . . . . . . . . . Parts Fried 5 | . 2 . 3 . . . . . . . . . Impact Corruptions . | . . . . . . . . . . . . . Robots Melted . | . . . . . . . . . . . . . Combat Hostiles . | . . . . . . . . . . . . . Parts Melted 2 | . . . 1 . . . 1 . . . . . Heat Transferred 3094 | . . . 1810 111 . . 1099 . . . . 74 Parts Sabotaged . | . . . . . . . . . . . . . Parts Stolen . | . . . . . . . . . . . . . Parts Stripped . | . . . . . . . . . . . . . Power Chain Reactions 10 | . . . 8 . . . 2 . . . . . Missiles Intercepted . | . . . . . . . . . . . . . Alert | -11 -10 -10 -9 -9 -9 -8 -8 -7 -7 -7 -7 -7 ------- Run | Scr Mat Min Mat Min Exi Min Mat Fac Low Low Zio Dee Peak Influence 822 | . 169 200 799 518 . . 822 393 . . . . Initial 373 | . . 45 27 311 . . . 373 . . . . Average 233 | . 56 84 389 431 . . 227 322 . . . . Maximum Alert Level 3 | . . 1 3 2 . . 3 1 . . . . Low Security (%) 57 | 100 100 71 24 . . 100 72 19 . . . . Level 1 15 | . . 28 17 24 . . 4 80 . . . . Level 2 23 | . . . 53 75 . . 16 . . . . . Level 3 2 | . . . 5 . . . 6 . . . . . Level 4 . | . . . . . . . . . . . . . Level 5 . | . . . . . . . . . . . . . High Security . | . . . . . . . . . . . . . Max Security . | . . . . . . . . . . . . . Squads Dispatched 17 | . 2 . 8 . . . 5 2 . . . . Investigation 4 | . 1 . 1 . . . 1 1 . . . . Extermination . | . . . . . . . . . . . . . Reinforcement 12 | . 1 . 6 . . . 4 1 . . . . Assault 1 | . . . 1 . . . . . . . . . Garrison . | . . . . . . . . . . . . . Intercept . | . . . . . . . . . . . . . Construction Impeded 1 | . . . 1 . . . . . . . . . Haulers Reinforced . | . . . . . . . . . . . . . Stealth | -11 -10 -10 -9 -9 -9 -8 -8 -7 -7 -7 -7 -7 --------- Run | Scr Mat Min Mat Min Exi Min Mat Fac Low Low Zio Dee Distress Signals 13 | . 4 . 4 . . . 5 . . . . . Communications Jammed . | . . . . . . . . . . . . . Distress Signals . | . . . . . . . . . . . . . Times Spotted 225 | . 34 11 74 16 . . 62 13 1 1 . 13 Peak Tracking Total 11 | . 5 3 5 11 . . 8 5 1 1 . 6 Tactical Retreats 18 | . 2 . . 1 . . 12 3 . . . . Traps | -11 -10 -10 -9 -9 -9 -8 -8 -7 -7 -7 -7 -7 ------- Run | Scr Mat Min Mat Min Exi Min Mat Fac Low Low Zio Dee Traps Triggered 9 | . 4 . 3 . . . 1 1 . . . . Indirectly . | . . . . . . . . . . . . . Trap Hack Attempts . | . . . . . . . . . . . . . Triggered . | . . . . . . . . . . . . . Disarmed . | . . . . . . . . . . . . . Reprogrammed . | . . . . . . . . . . . . . Reused . | . . . . . . . . . . . . . Traps Extracted . | . . . . . . . . . . . . . Installed . | . . . . . . . . . . . . . Triggered 1 | . . . . . . . . . 1 . . . Machines | -11 -10 -10 -9 -9 -9 -8 -8 -7 -7 -7 -7 -7 ---------- Run | Scr Mat Min Mat Min Exi Min Mat Fac Low Low Zio Dee Machines Disabled 21 | . . 1 4 7 . . 8 . . . . 1 Max in Single Turn 5 | . . 1 2 5 . . 1 . . . . . Garrison Access 1 | . . . . . . . . 1 . . . . Machines Sabotaged . | . . . . . . . . . . . . . Garrisons Compromised . | . . . . . . . . . . . . . Overloaded Fab Kills . | . . . . . . . . . . . . . Fab Network Shutdowns . | . . . . . . . . . . . . . Hacking | -11 -10 -10 -9 -9 -9 -8 -8 -7 -7 -7 -7 -7 --------- Run | Scr Mat Min Mat Min Exi Min Mat Fac Low Low Zio Dee Machines Accessed 35 | . 10 . 9 1 2 . 5 6 1 . 1 . Terminals 18 | . 7 . 4 1 . . 3 3 . . . . Fabricators 1 | . . . . . . . . 1 . . . . Repair Stations 4 | . 1 . 2 . . . . 1 . . . . Recycling Units 5 | . 2 . 2 . . . 1 . . . . . Scanalyzers 2 | . . . 1 . . . 1 . . . . . Garrison Access 1 | . . . . . . . . 1 . . . . Total Hacks 103 | . 31 . 27 8 2 . 14 16 1 . 4 . Successful 73 | . 24 . 16 3 2 . 8 15 1 . 4 . Failed 30 | . 7 . 11 5 . . 6 1 . . . . Catastrophic . | . . . . . . . . . . . . . Database Lockouts . | . . . . . . . . . . . . . Manual 49 | . 21 . 7 8 1 . 4 3 . . 5 . Terminals 56 | . 24 . 11 8 . . 5 8 . . . . Fabricators 3 | . . . . . . . . 3 . . . . Repair Stations 13 | . 3 . 6 . . . . 4 . . . . Recycling Units 12 | . 4 . 3 . . . 5 . . . . . Scanalyzers 11 | . . . 7 . . . 4 . . . . . Garrison Access 1 | . . . . . . . . 1 . . . . Terminal Hacks 33 | . 13 . 4 3 2 . 2 4 1 . 4 . Record 1 | . . . . . 1 . . . . . . . Part Schematic 5 | . 1 . . . . . . . . . 4 . Prototype ID Bank 14 | . 8 . 2 3 . . 1 . . . . . Open Door 1 | . . . . . . . . . 1 . . . Branch Access Points 1 | . . . . . . . . 1 . . . . Alert Level 5 | . 1 . 2 . . . 1 1 . . . . Recall Investigation 1 | . . . . . . . . 1 . . . . Hauler Manifests 2 | . 1 . . . . . . 1 . . . . Zone Layout 2 | . 2 . . . . . . . . . . . EX-Prototype ID Bank 1 | . . . . . 1 . . . . . . . Fabricator Hacks 3 | . . . . . . . . 3 . . . . Load Schematic 1 | . . . . . . . . 1 . . . . Build 2 | . . . . . . . . 2 . . . . Repair Station Hacks 10 | . 3 . 3 . . . . 4 . . . . Scan Component 7 | . 2 . 3 . . . . 2 . . . . Repair 3 | . 1 . . . . . . 2 . . . . Recycling Unit Hacks 6 | . 3 . 1 . . . 2 . . . . . Report Inventory 4 | . 2 . 1 . . . 1 . . . . . Retrieve Components 2 | . 1 . . . . . 1 . . . . . Scanalyzer 10 | . . . 7 . . . 3 . . . . . Insert Component 5 | . . . 3 . . . 2 . . . . . Analyze 5 | . . . 4 . . . 1 . . . . . Garrison Access Hacks 1 | . . . . . . . . 1 . . . . Seal Access 1 | . . . . . . . . 1 . . . . Unauthorized Hacks 10 | . 5 . 1 . . . 1 3 . . . . Terminals 10 | . 5 . 1 . . . 1 3 . . . . Assimilate 1 | . . . . . . . . 1 . . . . Botnet 6 | . 5 . . . . . . 1 . . . . Operators 3 | . . . 1 . . . 1 1 . . . . Fabricators . | . . . . . . . . . . . . . Repair Stations . | . . . . . . . . . . . . . Recycling Units . | . . . . . . . . . . . . . Scanalyzers . | . . . . . . . . . . . . . Garrison Access . | . . . . . . . . . . . . . Data Cores Recovered . | . . . . . . . . . . . . . Used . | . . . . . . . . . . . . . Hacking Detections 20 | . 5 . 8 1 . . 3 3 . . . . Full Trace Events 1 | . . . . . . . . 1 . . . . Feedback Events . | . . . . . . . . . . . . . Feedback Blocked . | . . . . . . . . . . . . . Robot Schematics Acquired . | . . . . . . . . . . . . . Robots Built 3 | . . . . . . . . 3 . . . . Matter 252 | . . . . . . . . 252 . . . . Time 134 | . . . . . . . . 134 . . . . Total Robot Build Rating 12 | . . . . . . . . 12 . . . . Part Schematics Acquired 9 | . 1 . 3 . . . 1 . . . 4 . Parts Built 1 | . . . . . . . . 1 . . . . Matter 146 | . . . . . . . . 146 . . . . Time 73 | . . . . . . . . 73 . . . . Total Part Build Rating 3 | . . . . . . . . 3 . . . . Parts Repaired 3 | . 1 . . . . . . 2 . . . . Time 70 | . 32 . . . . . . 38 . . . . Parts Recycled . | . . . . . . . . . . . . . Recycled Matter . | . . . . . . . . . . . . . Retrieved Matter . | . . . . . . . . . . . . . Retrieved Components 12 | . 9 . . . . . 3 . . . . . Parts Scanalyzed 5 | . . . 3 . . . 2 . . . . . Part Schematics Acquired 4 | . . . 3 . . . 1 . . . . . Parts Damaged . | . . . . . . . . . . . . . Bothacking | -11 -10 -10 -9 -9 -9 -8 -8 -7 -7 -7 -7 -7 ------------ Run | Scr Mat Min Mat Min Exi Min Mat Fac Low Low Zio Dee Used RIF Installer . | . . . . . . . . . . . . . Robots Hacked . | . . . . . . . . . . . . . Non-combat . | . . . . . . . . . . . . . Combat . | . . . . . . . . . . . . . Robot Hacks Applied . | . . . . . . . . . . . . . Relay Couplers Released . | . . . . . . . . . . . . . Robots Rewired . | . . . . . . . . . . . . . Allies Hacked . | . . . . . . . . . . . . . Hacks Repelled . | . . . . . . . . . . . . . Allies | -11 -10 -10 -9 -9 -9 -8 -8 -7 -7 -7 -7 -7 -------- Run | Scr Mat Min Mat Min Exi Min Mat Fac Low Low Zio Dee Total Allies 16 | . . . . 3 . . . 3 . . 10 . Largest Group 10 | . . . . 3 . . . 3 . . 10 10 Highest-Rated Group 394 | . . . . 40 . . . 90 . . 394 394 Highest-Rated Ally 94 | . . . . 16 . . . 30 . . 94 94 Total Orders 1 | . . . . . . . . 1 . . . . GUARD 1 | . . . . . . . . 1 . . . . Ally Attacks 87 | . . . . 12 . . . 1 . . . 74 Total Damage 1880 | . . . . 142 . . . 42 . . . 1696 Kills 11 | . . . . 2 . . . . . . . 9 Allies Corrupted . | . . . . . . . . . . . . . Allies Melted 1 | . . . . . . . . . . . . 1 Intel | -11 -10 -10 -9 -9 -9 -8 -8 -7 -7 -7 -7 -7 ------- Run | Scr Mat Min Mat Min Exi Min Mat Fac Low Low Zio Dee Robot Analysis Total . | . . . . . . . . . . . . . Derelict Logs Recovered 5 | . . 1 . 1 . . . . . 2 1 . Drone Launches . | . . . . . . . . . . . . . Drone Recoveries . | . . . . . . . . . . . . . Exploration | -11 -10 -10 -9 -9 -9 -8 -8 -7 -7 -7 -7 -7 ------------- Run | Scr Mat Min Mat Min Exi Min Mat Fac Low Low Zio Dee Turns Passed 10674 | 113 1888 943 2167 828 468 211 2373 648 308 94 304 329 Spaces Moved 7096 | 65 922 500 955 457 272 117 1039 766 734 265 659 345 Core 6 | 4 . . . . . . . . . . . 2 Treads 4324 | 61 922 500 955 457 272 117 1039 . . . . 1 Legs 2 | . . . . . . . . . . . . 2 Wheels . | . . . . . . . . . . . . . Hover 153 | . . . . . . . . . . . . 153 Flight 2611 | . . . . . . . . 766 734 265 659 187 Fastest Speed 29 | 50 160 180 160 160 160 180 175 29 29 30 30 30 Average Speed 116 | 153 170 180 160 166 171 180 178 29 29 30 30 48 Slowest Speed 180 | 160 180 180 180 180 180 180 180 102 102 30 30 160 Overloaded Moves . | . . . . . . . . . . . . . Propulsion Burnouts . | . . . . . . . . . . . . . Robots Hopped 2 | . . . . . . . . . . 2 . . Cave-ins Triggered . | . . . . . . . . . . . . . Exploration Rate (%) 60 | 5 99 97 80 90 66 48 62 17 70 42 78 38 Regions Visited 12 Branch Regions 8 Pre-discovered Areas 4 | . . 1 . . 1 . . . . . 2 . Known Exits Taken 5 | . . . . . . . 1 1 1 1 1 . Unknown Exits Taken 7 | 1 1 1 1 1 1 1 . . . . . . Scrap Searched 8 | . . 1 . 2 . 1 . . 2 . 2 . Spaces Dug 89 | . . . . . . . 4 5 80 . . . Terrain Destroyed 473 | . . 41 72 66 . . 84 5 170 . . 35 Melee 9 | . . . . . . . 4 5 . . . . Projectile . | . . . . . . . . . . . . . AOE 464 | . . 41 72 66 . . 80 . 170 . . 35 Terrain Rammed . | . . . . . . . . . . . . . Walls Destroyed . | . . . . . . . . . . . . . Machines Disabled . | . . . . . . . . . . . . . Actions | -11 -10 -10 -9 -9 -9 -8 -8 -7 -7 -7 -7 -7 --------- Run | Scr Mat Min Mat Min Exi Min Mat Fac Low Low Zio Dee Total 8984 | 76 1171 519 1386 507 273 118 1431 1192 802 270 766 473 Wait 1179 | . 152 . 185 31 . 2 238 358 36 1 102 74 Move 7080 | 64 921 499 954 456 271 116 1038 765 733 260 658 345 Hop 2 | . . . . . . . . . . 2 . . Pick Up 102 | 6 25 . 33 1 1 . 23 8 2 . 2 1 Fast Attach 34 | 6 4 . 6 . . . 2 7 2 . . 7 Attach 42 | . 1 1 12 1 1 . 3 12 1 1 . 9 Detach 16 | . . . 2 . . . 2 4 2 1 . 5 Swap 79 | . 8 5 30 4 . . 23 1 1 1 1 5 Drop 137 | . 22 . 44 4 . . 29 30 3 . 3 2 Fire 281 | . 38 14 120 10 . . 69 . 15 . . 15 Melee 32 | . . . . . . . 4 7 7 4 . 10 Ram . | . . . . . . . . . . . . . Kick . | . . . . . . . . . . . . . Crush . | . . . . . . . . . . . . . Escape Stasis . | . . . . . . . . . . . . . Rewire . | . . . . . . . . . . . . . Trap . | . . . . . . . . . . . . . Miscellaneous . | . . . . . . . . . . . . . Route ------- -11/Scrapyard -10/Materials (discovered 5 exits: *Mat x3 / [*Min x2]) -10/Mines (discovered 2 exits: *Mat x2) -9/Materials (discovered 2 exits: *Mat / *Min) -9/Mines (discovered 3 exits: *Mat x2 / *Exi) -9/Exiles -8/Mines -8/Materials -7/Factory (discovered 5 exits: [*Fac x2] / Sto / *Low x2) -7/Lower Caves -7/Lower Caves -7/Zion (discovered 2 exits: *Dee / [*Pro]) -7/Deep Caves History --------- Turn | Location | Event 2 | -11/Scrapyard | Discovered new exit (range 16) 114 | -11/Scrapyard | Entered Materials 308 | -10/Materials | Build established: Mutant 334 | -10/Materials | Discovered new exit (range 14) 549 | -10/Materials | Discovered new exit (range 10) 944 | -10/Materials | Repaired Imp. Ion Engine 1004 | -10/Materials | Discovered new exit (range 13) 1701 | -10/Materials | Discovered new exit (range 5) 1832 | -10/Materials | Discovered new exit (range 10) 2002 | -10/Materials | Entered Mines 2046 | -10/Mines | Met a Derelict bent on vengeance 2293 | -10/Mines | Learned location of Storage (-7) 2432 | -10/Mines | Discovered new exit (range 16) 2436 | -10/Mines | Learned Materials stockpile data 2912 | -10/Mines | Core integrity fell below 50% 2925 | -10/Mines | Discovered new exit (range 6) 2945 | -10/Mines | Entered Materials 2945 | -9/Materials | Evolved 2 slots: Propulsion x1, Utility x1 3115 | -9/Materials | Lost 4 parts (1p3w) 3600 | -9/Materials | Destroyed 10 combat bots 3984 | -9/Materials | Build established: Scavenger-Mutant 4040 | -9/Materials | Discovered new exit (range 15) 4474 | -9/Materials | Discovered new exit (range 16) 4945 | -9/Materials | First assault squad dispatched 5041 | -9/Materials | Core integrity fell below 50% 5112 | -9/Materials | Entered Mines 5307 | -9/Mines | Discovered new exit (range 6) 5329 | -9/Mines | Build established: Hauler-Mutant 5363 | -9/Mines | Assisted by bots powering up and referring to "LRC-V3" 5518 | -9/Mines | Learned location of 1 exit from Materials 5615 | -9/Mines | Discovered new exit (range 10) 5679 | -9/Mines | Found a hidden stash of uninstalled traps 5903 | -9/Mines | Assembled infested the area 5933 | -9/Mines | Deemed a non-threat by the Exiles lab entrance 5933 | -9/Mines | Discovered new exit (range 5) 5940 | -9/Mines | Entered Exiles 5980 | -9/Exiles | Met 8R-AWN 6006 | -9/Exiles | Met EX-HEX 6129 | -9/Exiles | Met EX-BIN 6149 | -9/Exiles | Aligned with FarCom system 6151 | -9/Exiles | Given EX-Vault access code 6192 | -9/Exiles | Opened EX-Vault 6205 | -9/Exiles | Found YOLO Cannon 6242 | -9/Exiles | Warned to stay clear of 0b10 Research branches 6292 | -9/Exiles | Met EX-DEC 6307 | -9/Exiles | Learned location of Zion (-7) 6393 | -9/Exiles | Discovered new exit (range 10) 6408 | -9/Exiles | Left Exiles lab with YOLO Cannon 6408 | -9/Exiles | Entered Mines 6596 | -8/Mines | Discovered new exit (range 11) 6619 | -8/Mines | Entered Materials 6619 | -8/Materials | Evolved 2 slots: Utility x2 6620 | -8/Materials | Identified exit to Factory 8992 | -8/Materials | Entered Factory 8992 | -7/Factory | Evolved 2 slots: Utility x2 9061 | -7/Factory | Identified exit to Storage 9061 | -7/Factory | Identified exit to Lower Caves 9076 | -7/Factory | Discovered new exit (range 16) 9110 | -7/Factory | Repaired Lgt. Nuclear Core 9130 | -7/Factory | Repaired Lgt. Nuclear Core 9322 | -7/Factory | Fabricated L-41 Fighter (x3) 9344 | -7/Factory | Build established: Hacker-Sprinter 9396 | -7/Factory | Fabricated Hacking Suite (x1) 9553 | -7/Factory | Discovered new exit (range 10) 9640 | -7/Factory | Entered Lower Caves 9821 | -7/Lower Caves | Spotted B-75 Beast 9932 | -7/Lower Caves | Discovered new exit (range 14) 9948 | -7/Lower Caves | Identified exit to Lower Caves 9948 | -7/Lower Caves | Entered another Lower Caves area 9974 | -7/Lower Caves | Learned location of 1 exit from Factory 9991 | -7/Lower Caves | Encountered a Warlord checkpoint 10000 | -7/Lower Caves | Identified exit to Zion 10042 | -7/Lower Caves | Entered Zion 10063 | -7/Zion | Given A8's code to call for help 10073 | -7/Zion | Found CR-A16's Pointy Stick 10075 | -7/Zion | Discovered new exit (range 11) 10077 | -7/Zion | Given the Hacking Drone Bay 10078 | -7/Zion | Found Prototype Device 10092 | -7/Zion | Acquired unknown access codes intercepted by a Zionite 10098 | -7/Zion | System corruption cleaned by Quarantine Array 10101 | -7/Zion | Learned location of Recycling (-7) 10213 | -7/Zion | Gained Derelict followers 10213 | -7/Zion | Learned location of Extension (-5) 10232 | -7/Zion | Gained Derelict followers 10310 | -7/Zion | Opened final containment barrier to the Deep Caves 10315 | -7/Zion | Enhanced Grunt warped into view, answering call for help 10318 | -7/Zion | Enhanced Grunt warped into view, answering call for help 10325 | -7/Zion | Discovered new exit (range 5) 10326 | -7/Zion | Saw the warning signs outside the Deep Caves entrance 10327 | -7/Zion | Identified exit to Deep Caves 10346 | -7/Zion | Entered Deep Caves 10346 | -7/Deep Caves | Accompanied by 10 allies 10409 | -7/Deep Caves | Identified Hacking Drone Bay 10437 | -7/Deep Caves | Attacked by Z-Imprinter 10456 | -7/Deep Caves | Allies destroyed Z-Imprinter 10490 | -7/Deep Caves | Z-Facility disabled 10492 | -7/Deep Caves | Found Prototype Device 10492 | -7/Deep Caves | Identified Zio. Metafield Generator 10497 | -7/Deep Caves | Found Prototype Protection 10497 | -7/Deep Caves | Identified Zio. Weapon Casing 10501 | -7/Deep Caves | Lost 3 parts (1p1n1w) 10654 | -7/Deep Caves | Core integrity fell below 50% 10671 | -7/Deep Caves | Core integrity fell below 20% 10675 | -7/Deep Caves | Destroyed by 26-S5A(z) with Zionite Laser-S Last Messages --------------- 10626_ Imp. EM Pulse Cannon destroyed. 10632_ Katana destroyed. 10636_ RW-LS7(z) knocked back. 10637_ Enhanced Grunt destroyed. 10638_ CG-CB9(b) destroyed. 10641_ Zio. Glidesys I destroyed. 10641_ Imp. Flight Unit destroyed. 10645_ Lgt. Angular Momentum Engine destroyed. 10645_ Beamcaster destroyed. 10646_ Imp. Light Armor Plating destroyed. 10647_ Hacking Suite destroyed. 10647_ Cesium-ion Thruster destroyed. 10651_ Acquired Prototype Leg. 10651_ Identified Enh. Flexi-carbon Leg. 10653_ Acquired Enh. Flexi-carbon Leg. 10656_ Acquired Lgt. Treads. 10657_ Acquired 30 matter. 10660_ Acquired 10 matter. 10666_ Enh. Flexi-carbon Leg destroyed. 10672_ Lgt. Treads destroyed. Map ----- +----------------------------------------------------+ | | | | | | | | | | | | | | | | | | | | | | | | | | | | | | | | | | | ????????????????????????????????????#????????????? | | ???????????????????????????????####;##########???? | | ???????????????????????# ???#### ##??? | | ???????????????????????# ??## #??? | | ??????????????????###### ?## #### | | ??????????????????# !; #; ## | | ?????????????# ## ==%z | | ?????????? !!%=z | | ?????????? %!z!@ %! | | ?????????? !z | | ?????????? | | ??????????? "" | | ??????????? """"" """""""" | | ???????????? """"""""""""" | | ???????????? """""""""""""" | | ???????????? """"""""""" | | ????????????? """""""""""""" | | ????????????? ""??"""""""""" | | ?????????????? "???"""""""""" | | ?????????????? "??""""""""""" | | ???????????????? "??"""""" "=" | | ????????????????? ??""""""" / | | ??????????????????? ???"""""=* | | ????????????????????? ? ????""""""% | | ????????????????????????????????"""""" | | ????????????????????????????????"""""""" | | ????????????????????????????????""""""""" | | ????????????????????????????????""" | | ????????????????????????????????""" """ | | ????????????????????????????????""" """"" | | ?????????????????????????????????"" """"""" | | ?????????????????????????????????"" """"""" | | ?????????????????????????????????"" """"""" | +----------------------------------------------------+ Best States ------------- Heat Dissipation 34 Energy Generation 18 Energy Capacity 280 Matter Stores 300 Matter Capacity 300 Sight Range 16 Robot Scan Range 16 Terrain Scan Density 210 Armor Coverage 225 Evasion (%) 64 Recoil Reduction 3 Offensive Hacking 42 Item Schematics ----------------- Lgt. Armor Plating | -10/Materials | Hacked Hacking Suite | -9/Materials | Scanalyzed Lgt. Nuclear Core | -9/Materials | Scanalyzed Mni. Grenade Launcher | -9/Materials | Scanalyzed Imp. Terrain Scan Processor | -8/Materials | Scanalyzed Battle Rifle | -7/Zion | Free Battle Cannon | -7/Zion | Free Slug Cannon | -7/Zion | Free Enh. Flamer | -7/Zion | Free Robot Schematics ------------------ None Fabricated ------------ L-41 Fighter | x3 | -7/Factory | Preloaded Hacking Suite | x1 | -7/Factory Alien Tech Used ----------------- None Achievements -------------- Are We The Baddies? Help From High Places Challenges ------------ None Game ------ Seed CoilMobileNullifier Manual? 0 Play Time 01:54:15 Cumulative 42.9 hours Start 2020.11.18 @ 21:22:25 End 2020.11.18 @ 23:19:52 Sessions 1 Manual Loads 0 Difficulty Rogue Special Mode Halloween2020/ForbiddenLore Game No. 34 Rogue 34 Adventurer 0 Explorer 0 Win Type - Total 0 Types 0/0/0/0/0/0/0/0/0 Lore% 39 Gallery% 45 Achievement% 35 Wizard Run 0 Options --------- ASCII 1 Keyboard 1 Movement Numpad Keybinds 0 Fullscreen 2 Font 18/SmallcapsGlow Map View 76x50 Tactical HUD 1 Map Filters NONE Filters NONE Steam 1 RUN: eb260caa-d02e-4e8d-b62c-3ffe1cb488af